Cogmind - Beta 15 @@@ ROGUE MODE // 2025.05.18 @ 15:54:18 Player: morimori Result: Destroyed by G-34 Mercenary with Small Laser Performance ------------- Evolutions (0) 0 Regions Visited (2) 400 Robots Destroyed (27) 135 Value Destroyed (617) 617 Prototype IDs (3) 60 Alien Tech Used (0) 0 Bonus (0) 0 TOTAL SCORE: 1212 Bonus ------- None Cogmind --------- Core Integrity 0/250 Matter 281/300 Energy 250/250 System Corruption 0% Temperature Cool (6) Movement Rolling (140) Ox4 Location -10/Mines Parts ------- > --- POWER (1) -------- Ion Engine > --- PROPULSION (2) --- Wheel Wheel > --- UTILITY (2) ------ Huge Storage Unit > --- WEAPON (2) ------- Assault Rifle Assault Rifle > --- INVENTORY (25) --- Light Ion Engine Light Ion Engine Wheel Wheel Hover Unit Hover Unit Hover Unit Heat Sink Heat Sink Large Storage Unit Sensor Array Improved Terrain Scanner Seismic Detector Makeshift Spear Peak State ------------ > --- POWER ------------ Ion Engine > --- PROPULSION ------- Wheel Wheel > --- UTILITY ---------- Huge Storage Unit Seismic Detector > --- WEAPON ----------- Assault Rifle Assault Rifle > --- INVENTORY -------- Ion Engine Light Ion Engine Wheel Wheel Hover Unit Hover Unit Hover Unit Heat Sink Heat Sink Large Storage Unit Sensor Array Improved Terrain Scanner Assault Rifle Assault Rifle Makeshift Spear [Rating: 9] Favorites ----------- Power Ion Engine Engine Ion Engine Propulsion Wheel Wheel Wheel Utility Seismic Detector Device Seismic Detector Storage Huge Storage Unit Protection Light Armor Plating Weapon Assault Rifle Energy Gun EM Pulse Gun Ballistic Gun Assault Rifle Slashing Weapon Mining Claw Build | -11 -10 -10 ------- Run | Yrd Mat Min Slots Evolved . | . . . Power . | . . . Propulsion . | . . . Utility . | . . . Weapon . | . . . Parts Attached 26 | 8 12 6 Power 4 | 1 2 1 Engine 4 | 1 2 1 Core . | . . . Reactor . | . . . Propulsion 8 | 2 4 2 Treads . | . . . Leg . | . . . Wheel 8 | 2 4 2 Hover . | . . . Flight . | . . . Utility 5 | 2 1 2 Device 2 | 1 . 1 Storage 2 | 1 1 . Processor . | . . . Hackware . | . . . Protection 1 | . . 1 Artifact . | . . . Weapon 9 | 3 5 1 Energy Gun 2 | 2 . . Energy Cannon . | . . . Ballistic Gun 6 | 1 4 1 Ballistic Cannon . | . . . Launcher . | . . . Special Weapon . | . . . Impact Weapon . | . . . Slashing Weapon 1 | . 1 . Piercing Weapon . | . . . Special Melee Weapon . | . . . Unidentified Prototypes . | . . . Parts Lost 5 | . . 5 Power 1 | . . 1 Propulsion 1 | . . 1 Utility 1 | . . 1 Weapon 2 | . . 2 Highest Loss Streak 4 | . . 4 To Critical Strikes . | . . . Average Backups 11 | 2 9 15 Power 1 | . 1 1 Propulsion 3 | . 3 4 Utility 3 | . 2 5 Weapon 1 | . 1 2 Tool/Special . | . . . Unused Backups 16 | . 6 10 Power 3 | . 1 2 Propulsion 6 | . 3 3 Utility 5 | . 1 4 Weapon 2 | . 1 1 Tool/Special . | . . . Average Slot Usage (%) 99 | . 100 99 Engine 13 | . 14 13 Wheel 27 | . 28 27 Device 13 | . 14 12 Storage 14 | . 14 14 Ballistic Gun 26 | . 26 28 Peak Build Rating 9 | 7 8 9 Average Rating 8 | 5 7 8 On Entrance 5 | . 7 8 Naked Turns . | . . . Heaviest Build 92 | 15 90 92 Greatest Support 26 | 26 26 20 Greatest Overweight (x) 4 | . 4 4 Average Overweight (x) 1 | . 1 4 Largest Inventory Capacity 25 | 8 25 25 Average Capacity 17 | 7 13 25 Most Carried 16 | 6 15 16 Average Carried 11 | 2 9 15 Final Capacity 25 | 8 25 25 Final Carried 14 | 6 14 14 Class Distribution -------------------- 100% | Mutant Dominant Class ---------------- Mutant | -10/Materials Mutant | -10/Mines Resources | -11 -10 -10 ----------- Run | Yrd Mat Min Matter Collected 878 | 313 355 210 Remotely . | . . . Salvage Created 964 | 166 490 308 Parts 54 | 14 27 13 Haulers Intercepted 1 | . 1 . Recyclers Shooed 1 | . 1 . Parts Field Recycled . | . . . Retrieved Matter . | . . . Parts Self-Destructed . | . . . Prevented . | . . . Kills | -11 -10 -10 ------- Run | Yrd Mat Min Combat Hostiles Destroyed 17 | . 9 8 Guns 17 | . 9 8 Classes Destroyed 11 | 3 7 1 Worker 1 | 1 . . Builder 1 | . 1 . Tunneler 3 | 3 . . Hauler 1 | . 1 . Recycler 1 | 1 . . Mechanic 1 | . 1 . Operator 1 | . 1 . Watcher 2 | . 2 . Swarmer 3 | . 3 . Grunt 13 | . 6 7 Assembled 1 | . . 1 Best Kill Streak 5 | 5 3 4 Combat Bots Only 4 | . 3 4 Max Kills in Single Turn 2 | 1 2 1 Gunslinging . | . . . Exploded . | . . . Melee . | . . . Uniques/NPCs Destroyed . | . . . Combat | -11 -10 -10 -------- Run | Yrd Mat Min Hostile Shots Fired 123 | . 39 84 Missed 34 | . 13 21 Hits 89 | . 26 63 Melee 1 | . . 1 Projectile 88 | . 26 62 Damage Taken 1055 | . 326 729 Core 251 | . 88 163 Absorbed by Shields . | . . . Regen/Repaired (Parts) 66 | . 66 . Core Remaining (%) 100 | 100 . . Volleys Fired 100 | 14 56 30 Largest 2 | 2 2 2 Hottest 80 | 80 60 40 Shots Fired 183 | 17 108 58 Gun 183 | 17 108 58 Cannon . | . . . Launcher . | . . . Special . | . . . Kinetic 172 | 11 103 58 Thermal . | . . . Explosive . | . . . Electromagnetic 11 | 6 5 . Robot Hit Streak 9 | 4 8 9 Robot Miss Streak 5 | 3 5 2 Penetration Max . | . . . Secondary Targets 2 | . . 2 Max Gunslinging Chain 1 | . . 1 Shots Hit Robots 119 | 12 64 43 Core Hits 56 | 6 31 19 Critical Kills . | . . . Critical Parts Destroyed 1 | . 1 . Critical Strikes 2 | 1 1 . Destroy 1 | . 1 . Corrupt 1 | 1 . . Melee Attacks 2 | . 2 . Impact . | . . . Slashing 2 | . 2 . Piercing . | . . . Sneak Attacks . | . . . Combat Hostiles . | . . . Follow-up Attacks . | . . . Damage Inflicted 1552 | 198 760 594 Guns 1514 | 160 760 594 Cannons . | . . . Explosions 38 | 38 . . Melee . | . . . Ramming . | . . . Kinetic 1449 | 95 760 594 Thermal 38 | 38 . . Explosive . | . . . Electromagnetic 65 | 65 . . Impact . | . . . Slashing . | . . . Piercing . | . . . Highest Corruption . | . . . Average Corruption . | . . . Corruption Purged . | . . . Corruption Blocked . | . . . Overload Shots . | . . . Overflow Damage . | . . . Projectiles . | . . . Explosions . | . . . Melee . | . . . Knockbacks . | . . . Impact . | . . . Kinetic . | . . . Secondary . | . . . Self-Inflicted Damage . | . . . Shots . | . . . Rammed . | . . . Targets Rammed . | . . . Kicked . | . . . Crushed . | . . . Highest Temperature 18 | 18 10 15 Average Temperature 6 | 12 5 4 Received Heat Transfer 561 | . 174 387 Siege Activations . | . . . Martial Activations . | . . . Shielding Activations . | . . . Robots Disrupted . | . . . Combat Hostiles . | . . . Robots Corrupted . | . . . Combat Hostiles . | . . . Parts Fried . | . . . Impact Corruptions . | . . . Robots Melted . | . . . Combat Hostiles . | . . . Parts Melted . | . . . Heat Transferred . | . . . Parts Sabotaged . | . . . Parts Stolen . | . . . Parts Stripped . | . . . Power Chain Reactions 1 | 1 . . Alert | -11 -10 -10 ------- Run | Yrd Mat Min Maximum Alert Level . | . . . Low Security (%) 100 | 100 100 100 Level 1 . | . . . Level 2 . | . . . Level 3 . | . . . Level 4 . | . . . Level 5 . | . . . High Security . | . . . Max Security . | . . . Peak Influence 95 | 10 95 48 Initial . | . . . Average 16 | 3 25 5 Influence Increases 543 | 25 338 180 Destroy 0b10 Robot/C 320 | . 180 140 Destroy 0b10 Robot/NC 55 | 25 30 . Destroy Leader 56 | . 46 10 Successful Hack 52 | . 52 . Disable Machine 15 | . 15 . Partial Spotted 15 | . . 15 Lose Combat Pursuer 30 | . 15 15 Influence Decreases 495 | 25 338 132 Time Decay 455 | 25 338 92 Lost Part 40 | . . 40 Squads Dispatched 1 | . 1 . Investigation . | . . . Extermination . | . . . Reinforcement 1 | . 1 . Assault . | . . . Garrison . | . . . Intercept . | . . . Searches Triggered . | . . . Construction Impeded . | . . . Haulers Reinforced . | . . . Active Scanning Responses . | . . . Cargo Convoy Interrupts . | . . . Stealth | -11 -10 -10 --------- Run | Yrd Mat Min Distress Signals 3 | . 1 2 Communications Jammed . | . . . Distress Signals . | . . . Times Spotted 37 | . 26 11 Peak Tracking Total 5 | . 4 5 Tactical Retreats 2 | . 1 1 Traps | -11 -10 -10 ------- Run | Yrd Mat Min Traps Triggered . | . . . Indirectly . | . . . Trap Hack Attempts . | . . . Triggered . | . . . Disarmed . | . . . Reprogrammed . | . . . Reused . | . . . Traps Extracted . | . . . Installed . | . . . Triggered . | . . . Machines | -11 -10 -10 ---------- Run | Yrd Mat Min Machines Disabled 1 | . 1 . Max in Single Turn 1 | . 1 . Machines Repaired . | . . . Machines Dismantled . | . . . Machines Sabotaged . | . . . Overloaded Fab Kills . | . . . Hacking | -11 -10 -10 --------- Run | Yrd Mat Min Machines Accessed 11 | . 11 . Terminals 8 | . 8 . Fabricators . | . . . Repair Stations 1 | . 1 . Recycling Units 2 | . 2 . Scanalyzers . | . . . Garrison Access . | . . . Total Hacks 35 | . 35 . Successful 21 | . 21 . Failed 14 | . 14 . Catastrophic 1 | . 1 . Database Lockouts . | . . . Manual 22 | . 22 . Terminals 28 | . 28 . Fabricators . | . . . Repair Stations 5 | . 5 . Recycling Units 2 | . 2 . Scanalyzers . | . . . Garrison Access . | . . . Terminal Hacks 10 | . 10 . Part Schematic 2 | . 2 . Robot Analysis 2 | . 2 . Prototype ID Bank 2 | . 2 . Terminal Index 1 | . 1 . Locate Traps 2 | . 2 . Zone Layout 1 | . 1 . Fabricator Hacks . | . . . Repair Station Hacks 4 | . 4 . Scan Component 2 | . 2 . Repair 2 | . 2 . Recycling Unit Hacks 2 | . 2 . Retrieve Components 2 | . 2 . Scanalyzer . | . . . Garrison Access Hacks . | . . . Unauthorized Hacks 5 | . 5 . Terminals 5 | . 5 . Botnet 3 | . 3 . Disrupt 1 | . 1 . Operators 1 | . 1 . Fabricators . | . . . Repair Stations . | . . . Recycling Units . | . . . Scanalyzers . | . . . Garrison Access . | . . . Data Cores Recovered . | . . . Used . | . . . Hacking Detections 9 | . 9 . Full Trace Events . | . . . Feedback Events . | . . . Feedback Blocked . | . . . Robot Schematics Acquired . | . . . Robots Built . | . . . Authchips . | . . . Time . | . . . Total Robot Build Rating . | . . . Part Schematics Acquired 2 | . 2 . Parts Built . | . . . Authchips . | . . . Time . | . . . Total Part Build Rating . | . . . Parts Repaired 2 | . 2 . Time 52 | . 52 . Parts Recycled . | . . . Recycled Matter . | . . . Retrieved Matter . | . . . Retrieved Components 11 | . 11 . Parts Scanalyzed . | . . . Part Schematics Acquired . | . . . Parts Damaged . | . . . Bothacking | -11 -10 -10 ------------ Run | Yrd Mat Min Used RIF Installer . | . . . Robots Hacked . | . . . Non-combat . | . . . Combat . | . . . Robot Hacks Applied . | . . . Relay Couplers Released . | . . . Fabnet Peak Effective % . | . . . Robots Rewired . | . . . Allies Hacked . | . . . Hacks Repelled . | . . . Allies | -11 -10 -10 -------- Run | Yrd Mat Min Total Allies . | . . . Largest Group . | . . . Highest-Rated Group . | . . . Highest-Rated Ally . | . . . Total Orders . | . . . Ally Attacks . | . . . Total Damage . | . . . Kills . | . . . Allies Corrupted . | . . . Allies Melted . | . . . Intel | -11 -10 -10 ------- Run | Yrd Mat Min Active Infowar (turns) 1881 | 27 1208 646 Seismic 1881 | 27 1208 646 Robot Analysis Total 2 | . 2 . Derelict Logs Recovered . | . . . Drone Launches . | . . . Drone Recoveries . | . . . Exploration | -11 -10 -10 ------------- Run | Yrd Mat Min Turns Passed 2102 | 123 1208 771 Spaces Moved 1069 | 70 889 110 Core 1 | 1 . . Treads . | . . . Legs . | . . . Wheels 1068 | 69 889 110 Hover . | . . . Flight . | . . . Fastest Speed 50 | 50 80 140 Average Speed 102 | 89 98 140 Slowest Speed 140 | 90 140 140 Overloaded Moves . | . . . Propulsion Burnouts . | . . . Robots Hopped . | . . . Potential Cave-ins . | . . . Cave-ins Triggered . | . . . Exploration Rate (%) 41 | 3 99 23 Regions Visited 2 Branch Regions 1 Pre-discovered Areas . | . . . Known Exits Taken . | . . . Unknown Exits Taken 2 | 1 1 . Scrap Searched . | . . . Spaces Dug . | . . . Terrain Destroyed 7 | 7 . . Melee . | . . . Projectile . | . . . AOE 7 | 7 . . Terrain Rammed . | . . . Walls Destroyed . | . . . Machines Disabled . | . . . Actions | -11 -10 -10 --------- Run | Yrd Mat Min Total 1902 | 109 1126 667 Wait 659 | 12 133 514 Move 1067 | 69 888 110 Hop . | . . . Pick Up 27 | 6 17 4 Fast Attach 7 | 7 . . Attach 4 | . . 4 Detach . | . . . Swap 18 | 1 13 4 Drop 18 | . 17 1 Fire 100 | 14 56 30 Melee 2 | . 2 . Ram . | . . . Kick . | . . . Crush . | . . . Escape Stasis . | . . . Rewire . | . . . Trap . | . . . Miscellaneous . | . . . Route ------- -11/Scrapyard -10/Materials (discovered 6 exits: [*Mat x3] / [*Min x2] / [*Sub]) -10/Mines History --------- Turn | Location | Event 29 | -11/Scrapyard | Discovered new exit (range 14) 124 | -11/Scrapyard | Entered Materials 187 | -10/Materials | Discovered new exit (range 14) 243 | -10/Materials | Discovered new exit (range 14) 294 | -10/Materials | Discovered new exit (range 16) 303 | -10/Materials | Build established: Mutant 709 | -10/Materials | Discovered new exit (range 10) 900 | -10/Materials | Discovered new exit (range 13) 1076 | -10/Materials | Discovered new exit (range 15) 1193 | -10/Materials | Repaired Assault Rifle 1219 | -10/Materials | Repaired Wheel 1332 | -10/Materials | Entered Mines 1391 | -10/Mines | A weapon hastily lodged in a ceiling crevice suddenly fell to the ground 1471 | -10/Mines | Excavation squad dispatched 1471 | -10/Mines | A large section of the Mines collapsed 1721 | -10/Mines | Excavation squad dispatched 1971 | -10/Mines | Excavation squad dispatched 1984 | -10/Mines | Core integrity fell below 50% 2004 | -10/Mines | Core integrity fell below 20% 2051 | -10/Mines | Lost 4 parts (1p1n2w) 2103 | -10/Mines | Destroyed by G-34 Mercenary with Small Laser Last Messages --------------- 02054_ U-05 Engineer lays Concrete. 02054_ K-01 Serf collects debris. 02060_ T-07 Excavator is excavating. 02061_ Acquired Imp. Terrain Scanner. 02062_ Dropped Imp. Terrain Scanner. 02069_ T-07 Excavator is excavating. 02071_ U-05 Engineer lays Concrete. 02073_ K-01 Serf collects debris. 02073_ T-07 Excavator is excavating. 02073_ U-05 Engineer lays Concrete. 02076_ G-34 Mercenary destroyed. 02085_ K-01 Serf collects debris. 02091_ Lgt. Armor Plating destroyed. 02092_ K-01 Serf collects debris. 02093_ Acquired 30 matter. 02094_ G-34 Mercenary destroyed. 02094_ Switching to secondary target: G-34 Mercenary. 02098_ K-01 Serf collects debris. 02100_ G-34 Mercenary destroyed. 02101_ K-01 Serf collects debris. Map ----- +----------------------------------------------------+ | ?????????????????????????????????????????? | | ??????????#####??????????????????????????? | | ?????###### |##?????????????????????????? | | ?????# ##????????????????????????? | | ?????# ###= #????????????????????????? | | ?????# #?## / ##?????????# ???????????? | | ?????# #??##! ! ##???????? ? ???????? | | ?????# #???### ##??????? ?????? | | ?????# #?????## #???#??? ??????? | | ?????# #??????# #???? ?# ???????? | | ?????# ####???## ##???? ## ???????? | | ????## ##???## #????? # ????????? | | ???## #????# #?????? ?????????? | | ??## ##????# #?????? #?????????? | | ??# ##?????# #?????? #?????????? | | ??# ##??????# #??????? #?????????? | | ??## ##???????# #??????? #??????????? | | ???# ##???????# #???????# #???????????? | | ??## "%###?????# ######### #???????????? | | ??# ! !##????# #???????????? | | ??# = ##???########### #???????????? | | ??## [="##????????????# ##??????????? | | ???##### ###?????????### ##?????????? | | ???????## %;########### #?????????? | | ????????#; !%!=!g==%%%= #?????????? | | ????????#; **@|%%%tk[ #?????????? | | ????????## #######t###!*## ##?????????? | | ??????????# ####### ## #######??????????? | | ??????????# ##????????????????? | | ???????????####### ##?????????????????? | | ????#########????## ###??????????????????? | | ????# """ #?????# #????????????????????? | | ????# """ #?????# #????????????????????? | | ????# """ ####### #????????????????????? | | ????# =% #????????????????????? | | ????# ##### ###????????????????????? | | ????## ######???# #??????????????????????? | | ?????# ?????????# #??????????????????????? | | ?????#??????????# #??????????????????????? | | ????????????????# #??????????????????????? | | ????????????????# #??????????????????????? | | ????????????????# ??????????????????????? | | ????????????????# #??????????????????????? | | ???????????????? #??????????????????????? | | ????????????????##???????????????????????? | | ?????????????????????????????????????????? | | ?????????????????????????????????????????? | | ?????????????????????????????????????????? | | ?????????????????????????????????????????? | | ?????????????????????????????????????????? | +----------------------------------------------------+ Best States ------------- Heat Dissipation 35 Energy Generation 10 Energy Capacity 250 Matter Stores 300 Matter Capacity 300 Sight Range 16 Terrain Scan Density 10 Armor Coverage 150 Evasion (%) 44 Item Schematics ----------------- Hcp. Storage Unit | -10/Materials | Hacked Huge Storage Unit | -10/Materials | Hacked Robot Schematics ------------------ None Fabricated ------------ Nothing Repaired ---------- Assault Rifle | 45% | -10/Materials Wheel | 72% | -10/Materials Alien Tech Used ----------------- None Achievements -------------- None Challenges ------------ None Game ------ Seed TeleporterRagnarokTerrabomb Manual? 0 Play Time 00:19:08 Cumulative 345.5 hours Start 2025.05.18 @ 14:09:29 End 2025.05.18 @ 15:54:18 Sessions 1 Manual Loads 0 Difficulty Rogue Special Mode None Game No. 185 Rogue 185 Adventurer 0 Explorer 0 Win Type - Total 4 Types 4/0/0/0/0/0/0/0/0/0 Lore% 56 Gallery% 64 Achievement% 61 Wizard Run 0 Options --------- Layout 0 ASCII 0 Keyboard 1 Movement Vi Keybinds 0 Fullscreen 2 Font 18/SmallcapsGlow Map View 76x50 Zoom Use 0% Tactical HUD 1 Map Filters NONE Filters NONE Steam 1 RUN: 1857c6ff-43ae-4b49-af54-24bc0b494a86